{"text_format":"3","workbook":"xlsx","n_sheets":2,"sheets":["Bestandsaufnahme der Geräte","Einstellungen"],"not_rendered":{"defined_names":4},"read":"whole","date_system":"1900"}

{"sheet":"Bestandsaufnahme der Geräte","index":0,"n_rows":35,"n_cols":6,"rows_kept":35,"merged":[[0,1,2,2],[0,4,0,5]]}
[]
[{"$nulls":4},"Artikel hervorheben, die älter sind als:"]
[{"$nulls":4},4]
[]
[null,"GERÄTE-ID","ARTIKELNAME","IM BESITZ VON","AUSGABEDATUM","ALTER DES ARTIKELS"]
[null,"ARTIKEL0001","Stuhl","Mitarbeiter 1",{"$f":"TODAY()-25","v":"2012-10-27"},{"$f":"IF(tblBstandsaufnahmeGeräte[[#This Row],[AUSGABEDATUM]]<>\"\",TODAY()-tblBstandsaufnahmeGeräte[[#This Row],[AUSGABEDATUM]],\"\")","v":{"v":25,"d":"25 days"}}]
[null,"ARTIKEL0002","Laserdrucker","Mitarbeiter 2",{"$f":"TODAY()-479","v":"2011-07-31"},{"$f":"IF(tblBstandsaufnahmeGeräte[[#This Row],[AUSGABEDATUM]]<>\"\",TODAY()-tblBstandsaufnahmeGeräte[[#This Row],[AUSGABEDATUM]],\"\")","v":{"v":479,"d":"479 days"}}]
[null,"ARTIKEL0003","Scanner","Mitarbeiter 3",{"$f":"TODAY()-177","v":"2012-05-28"},{"$f":"IF(tblBstandsaufnahmeGeräte[[#This Row],[AUSGABEDATUM]]<>\"\",TODAY()-tblBstandsaufnahmeGeräte[[#This Row],[AUSGABEDATUM]],\"\")","v":{"v":177,"d":"177 days"}}]
[null,"ARTIKEL0004","Laserdrucker","Mitarbeiter 7",{"$f":"TODAY()-18","v":"2012-11-03"},{"$f":"IF(tblBstandsaufnahmeGeräte[[#This Row],[AUSGABEDATUM]]<>\"\",TODAY()-tblBstandsaufnahmeGeräte[[#This Row],[AUSGABEDATUM]],\"\")","v":{"v":18,"d":"18 days"}}]
[null,"ARTIKEL0005","Kaffeemaschine","Mitarbeiter 20",{"$f":"TODAY()-227","v":"2012-04-08"},{"$f":"IF(tblBstandsaufnahmeGeräte[[#This Row],[AUSGABEDATUM]]<>\"\",TODAY()-tblBstandsaufnahmeGeräte[[#This Row],[AUSGABEDATUM]],\"\")","v":{"v":227,"d":"227 days"}}]
[null,"ARTIKEL0006","Scanner","Mitarbeiter 14",{"$f":"TODAY()-50","v":"2012-10-02"},{"$f":"IF(tblBstandsaufnahmeGeräte[[#This Row],[AUSGABEDATUM]]<>\"\",TODAY()-tblBstandsaufnahmeGeräte[[#This Row],[AUSGABEDATUM]],\"\")","v":{"v":50,"d":"50 days"}}]
[null,"ARTIKEL0007","Tisch","Mitarbeiter 4",{"$f":"TODAY()-120","v":"2012-07-24"},{"$f":"IF(tblBstandsaufnahmeGeräte[[#This Row],[AUSGABEDATUM]]<>\"\",TODAY()-tblBstandsaufnahmeGeräte[[#This Row],[AUSGABEDATUM]],\"\")","v":{"v":120,"d":"120 days"}}]
[null,"ARTIKEL0008","Kopierer","Mitarbeiter 12",{"$f":"TODAY()-499","v":"2011-07-11"},{"$f":"IF(tblBstandsaufnahmeGeräte[[#This Row],[AUSGABEDATUM]]<>\"\",TODAY()-tblBstandsaufnahmeGeräte[[#This Row],[AUSGABEDATUM]],\"\")","v":{"v":499,"d":"499 days"}}]
[null,"ARTIKEL0009","Zweitmonitor","Mitarbeiter 8",{"$f":"TODAY()-30","v":"2012-10-22"},{"$f":"IF(tblBstandsaufnahmeGeräte[[#This Row],[AUSGABEDATUM]]<>\"\",TODAY()-tblBstandsaufnahmeGeräte[[#This Row],[AUSGABEDATUM]],\"\")","v":{"v":30,"d":"30 days"}}]
[null,"ARTIKEL0010","Whiteboard","Mitarbeiter 19",{"$f":"TODAY()-50","v":"2012-10-02"},{"$f":"IF(tblBstandsaufnahmeGeräte[[#This Row],[AUSGABEDATUM]]<>\"\",TODAY()-tblBstandsaufnahmeGeräte[[#This Row],[AUSGABEDATUM]],\"\")","v":{"v":50,"d":"50 days"}}]
[null,"ARTIKEL0011","Kopierer","Mitarbeiter 12",{"$f":"TODAY()-450","v":"2011-08-29"},{"$f":"IF(tblBstandsaufnahmeGeräte[[#This Row],[AUSGABEDATUM]]<>\"\",TODAY()-tblBstandsaufnahmeGeräte[[#This Row],[AUSGABEDATUM]],\"\")","v":{"v":450,"d":"450 days"}}]
[null,"ARTIKEL0012","Briefpapier","Mitarbeiter 18",{"$f":"TODAY()-420","v":"2011-09-28"},{"$f":"IF(tblBstandsaufnahmeGeräte[[#This Row],[AUSGABEDATUM]]<>\"\",TODAY()-tblBstandsaufnahmeGeräte[[#This Row],[AUSGABEDATUM]],\"\")","v":{"v":420,"d":"420 days"}}]
[null,"ARTIKEL0013","Zweitmonitor","Mitarbeiter 8",{"$f":"TODAY()-250","v":"2012-03-16"},{"$f":"IF(tblBstandsaufnahmeGeräte[[#This Row],[AUSGABEDATUM]]<>\"\",TODAY()-tblBstandsaufnahmeGeräte[[#This Row],[AUSGABEDATUM]],\"\")","v":{"v":250,"d":"250 days"}}]
[null,"ARTIKEL0014","Kaffeemaschine","Mitarbeiter 9",{"$f":"TODAY()-45","v":"2012-10-07"},{"$f":"IF(tblBstandsaufnahmeGeräte[[#This Row],[AUSGABEDATUM]]<>\"\",TODAY()-tblBstandsaufnahmeGeräte[[#This Row],[AUSGABEDATUM]],\"\")","v":{"v":45,"d":"45 days"}}]
[null,"ARTIKEL0015","Briefpapier","Mitarbeiter 13",{"$f":"TODAY()-502","v":"2011-07-08"},{"$f":"IF(tblBstandsaufnahmeGeräte[[#This Row],[AUSGABEDATUM]]<>\"\",TODAY()-tblBstandsaufnahmeGeräte[[#This Row],[AUSGABEDATUM]],\"\")","v":{"v":502,"d":"502 days"}}]
[null,"ARTIKEL0016","Scanner","Mitarbeiter 1",{"$f":"TODAY()-350","v":"2011-12-07"},{"$f":"IF(tblBstandsaufnahmeGeräte[[#This Row],[AUSGABEDATUM]]<>\"\",TODAY()-tblBstandsaufnahmeGeräte[[#This Row],[AUSGABEDATUM]],\"\")","v":{"v":350,"d":"350 days"}}]
[null,"ARTIKEL0017","Kopierer","Mitarbeiter 19",{"$f":"TODAY()-125","v":"2012-07-19"},{"$f":"IF(tblBstandsaufnahmeGeräte[[#This Row],[AUSGABEDATUM]]<>\"\",TODAY()-tblBstandsaufnahmeGeräte[[#This Row],[AUSGABEDATUM]],\"\")","v":{"v":125,"d":"125 days"}}]
[null,"ARTIKEL0018","Whiteboard","Mitarbeiter 15",{"$f":"TODAY()-90","v":"2012-08-23"},{"$f":"IF(tblBstandsaufnahmeGeräte[[#This Row],[AUSGABEDATUM]]<>\"\",TODAY()-tblBstandsaufnahmeGeräte[[#This Row],[AUSGABEDATUM]],\"\")","v":{"v":90,"d":"90 days"}}]
[null,"ARTIKEL0019","Stuhl","Mitarbeiter 16",{"$f":"TODAY()-730","v":"2010-11-22"},{"$f":"IF(tblBstandsaufnahmeGeräte[[#This Row],[AUSGABEDATUM]]<>\"\",TODAY()-tblBstandsaufnahmeGeräte[[#This Row],[AUSGABEDATUM]],\"\")","v":{"v":730,"d":"730 days"}}]
[null,"ARTIKEL0020","Staubabdeckung (1 Satz)","Mitarbeiter 3",{"$f":"TODAY()-540","v":"2011-05-31"},{"$f":"IF(tblBstandsaufnahmeGeräte[[#This Row],[AUSGABEDATUM]]<>\"\",TODAY()-tblBstandsaufnahmeGeräte[[#This Row],[AUSGABEDATUM]],\"\")","v":{"v":540,"d":"540 days"}}]
[null,"ARTIKEL0021","Laserdrucker","Mitarbeiter 7",{"$f":"TODAY()-18","v":"2012-11-03"},{"$f":"IF(tblBstandsaufnahmeGeräte[[#This Row],[AUSGABEDATUM]]<>\"\",TODAY()-tblBstandsaufnahmeGeräte[[#This Row],[AUSGABEDATUM]],\"\")","v":{"v":18,"d":"18 days"}}]
[null,"ARTIKEL0022","Laptop","Mitarbeiter 8",{"$f":"TODAY()-283","v":"2012-02-12"},{"$f":"IF(tblBstandsaufnahmeGeräte[[#This Row],[AUSGABEDATUM]]<>\"\",TODAY()-tblBstandsaufnahmeGeräte[[#This Row],[AUSGABEDATUM]],\"\")","v":{"v":283,"d":"283 days"}}]
[null,"ARTIKEL0023","Briefpapier","Mitarbeiter 9",{"$f":"TODAY()-479","v":"2011-07-31"},{"$f":"IF(tblBstandsaufnahmeGeräte[[#This Row],[AUSGABEDATUM]]<>\"\",TODAY()-tblBstandsaufnahmeGeräte[[#This Row],[AUSGABEDATUM]],\"\")","v":{"v":479,"d":"479 days"}}]
[null,"ARTIKEL0024","Laserdrucker","Mitarbeiter 19",{"$f":"TODAY()-355","v":"2011-12-02"},{"$f":"IF(tblBstandsaufnahmeGeräte[[#This Row],[AUSGABEDATUM]]<>\"\",TODAY()-tblBstandsaufnahmeGeräte[[#This Row],[AUSGABEDATUM]],\"\")","v":{"v":355,"d":"355 days"}}]
[null,"ARTIKEL0025","Tisch","Mitarbeiter 7",{"$f":"TODAY()-28","v":"2012-10-24"},{"$f":"IF(tblBstandsaufnahmeGeräte[[#This Row],[AUSGABEDATUM]]<>\"\",TODAY()-tblBstandsaufnahmeGeräte[[#This Row],[AUSGABEDATUM]],\"\")","v":{"v":28,"d":"28 days"}}]
[null,"ARTIKEL0026","Whiteboard","Mitarbeiter 8",{"$f":"TODAY()-28","v":"2012-10-24"},{"$f":"IF(tblBstandsaufnahmeGeräte[[#This Row],[AUSGABEDATUM]]<>\"\",TODAY()-tblBstandsaufnahmeGeräte[[#This Row],[AUSGABEDATUM]],\"\")","v":{"v":28,"d":"28 days"}}]
[null,"ARTIKEL0027","Laptop","Mitarbeiter 19",{"$f":"TODAY()-736","v":"2010-11-16"},{"$f":"IF(tblBstandsaufnahmeGeräte[[#This Row],[AUSGABEDATUM]]<>\"\",TODAY()-tblBstandsaufnahmeGeräte[[#This Row],[AUSGABEDATUM]],\"\")","v":{"v":736,"d":"736 days"}}]
[null,"ARTIKEL0028","Tisch","Mitarbeiter 12",{"$f":"TODAY()-68","v":"2012-09-14"},{"$f":"IF(tblBstandsaufnahmeGeräte[[#This Row],[AUSGABEDATUM]]<>\"\",TODAY()-tblBstandsaufnahmeGeräte[[#This Row],[AUSGABEDATUM]],\"\")","v":{"v":68,"d":"68 days"}}]
[null,"ARTIKEL0029","Scanner","Mitarbeiter 14",{"$f":"TODAY()-67","v":"2012-09-15"},{"$f":"IF(tblBstandsaufnahmeGeräte[[#This Row],[AUSGABEDATUM]]<>\"\",TODAY()-tblBstandsaufnahmeGeräte[[#This Row],[AUSGABEDATUM]],\"\")","v":{"v":67,"d":"67 days"}}]
[null,"ARTIKEL0030","Kaffeemaschine","Mitarbeiter 3",{"$f":"TODAY()-149","v":"2012-06-25"},{"$f":"IF(tblBstandsaufnahmeGeräte[[#This Row],[AUSGABEDATUM]]<>\"\",TODAY()-tblBstandsaufnahmeGeräte[[#This Row],[AUSGABEDATUM]],\"\")","v":{"v":149,"d":"149 days"}}]

{"sheet":"Einstellungen","index":1,"n_rows":23,"n_cols":4,"rows_kept":23}
[]
[]
[null,"MITARBEITER",null,"ARTIKEL"]
[null,"Mitarbeiter 1",null,"Stuhl"]
[null,"Mitarbeiter 2",null,"Kaffeemaschine"]
[null,"Mitarbeiter 3",null,"Kopierer"]
[null,"Mitarbeiter 4",null,"Desktopcomputer"]
[null,"Mitarbeiter 5",null,"Staubabdeckung (1 Satz)"]
[null,"Mitarbeiter 6",null,"Zweitmonitor"]
[null,"Mitarbeiter 7",null,"Tintenstrahldrucker"]
[null,"Mitarbeiter 8",null,"Laptop"]
[null,"Mitarbeiter 9",null,"Laserdrucker"]
[null,"Mitarbeiter 10",null,"Textmarker (3er-Pack)"]
[null,"Mitarbeiter 11",null,"Scanner"]
[null,"Mitarbeiter 12",null,"Briefpapier"]
[null,"Mitarbeiter 13",null,"Tisch"]
[null,"Mitarbeiter 14",null,"USB-Laufwerk"]
[null,"Mitarbeiter 15",null,"Whiteboard"]
[null,"Mitarbeiter 16"]
[null,"Mitarbeiter 17"]
[null,"Mitarbeiter 18"]
[null,"Mitarbeiter 19"]
[null,"Mitarbeiter 20"]